[Event "EYCC Girls-U14 2019"]
[Site "Bratislava"]
[Date "2019.08.04"]
[Round "3.18"]
[White "Blokhin, Sofia"]
[Black "Kozachenko, Maria"]
[Result "1/2-1/2"]
[ECO "B90"]
[WhiteElo "1725"]
[BlackElo "1865"]
[Annotator "NA"]
[PlyCount "136"]
[EventDate "2019.08.02"]
[EventType "swiss"]
[EventCountry "SVK"]
[SourceTitle "playchess.com"]
[Source "ChessBase"]
[SourceQuality "1"]
[TimeControl "40/5400+30:1800+30"]

1. e4 {[%emt 0:00:00]} c5 {[%emt 0:00:00]} 2. Nf3 {[%emt 0:00:00]} d6 {[%emt 0:00:00]} 3. d4 {[%emt 0:00:00]} cxd4 {[%emt 0:00:00]} 4. Nxd4 {[%emt 0:00:00]} Nf6 {[%emt 0:00:08]} 5. Nc3 {[%emt 0:00:00]} a6 {[%emt 0:00:36]} 6. f3 {[%emt 0:00:14]} h5 {[%emt 0:00:20]} 7. Be3 {[%emt 0:00:20]} e5 {[%emt 0:00:17]} 8. Nb3 {[%emt 0:00:10]} Be6 {[%emt 0:00:28]} 9. Qd2 {[%emt 0:00:17]} Nbd7 {[%emt 0:00:53]} 10. O-O-O {[%emt 0:00:43]} Rc8 {[%emt 0:01:20]} 11. Kb1 {[%emt 0:00:59]} b5 {[%emt 0:02:18]} 12. a3 {[%emt 0:00:53]} Be7 {[%emt 0:02:05]} 13. h3 {[%emt 0:01:05]} h4 {[%emt 0:01:27]} 14. f4 {[%emt 0:04:21]} O-O {[%emt 0:10:04]} 15. Rg1 {[%emt 0:09:30]} Nh5 {[%emt 0:09:29]} 16. f5 {[%emt 0:07:13]} Bc4 {[%emt 0:03:57]} 17. Bf2 {[%emt 0:05:59]} Rc6 {[%emt 0:07:55]} 18. g3 {[%emt 0:07:15]} Bxf1 {[%emt 0:04:54]} 19. Rdxf1 {[%emt 0:01:21]} Ndf6 {[%emt 0:04:53]} 20. gxh4 {[%emt 0:02:48]} Nf4 {[%emt 0:05:31]} 21. Be3 {[%emt 0:04:10]} Rxc3 {[%emt 0:03:58]} 22. Bxf4 {[%emt 0:03:43]} Rc7 {[%emt 0:01:46]} 23. Bh6 {[%emt 0:02:16]} Ne8 {[%emt 0:00:47]} 24. h5 {[%emt 0:06:02]} Kh7 {[%emt 0:01:37]} 25. Be3 {[%emt 0:00:35]} Rd7 {[%emt 0:03:34]} 26. Qg2 {[%emt 0:01:14]} Bf6 {[%emt 0:02:35]} 27. Qg4 {[%emt 0:02:31]} Rg8 {[%emt 0:02:28]} 28. h6 {[%emt 0:03:46]} g6 {[%emt 0:01:43]} 29. fxg6+ {[%emt 0:01:40]} fxg6 {[%emt 0:00:12]} 30. Bb6 {[%emt 0:03:28]} Qe7 {[%emt 0:03:41]} 31. Bf2 {[%emt 0:01:53]} Kxh6 {[%emt 0:04:02]} 32. Be3+ {[%emt 0:00:58]} Kh7 {[%emt 0:00:43]} 33. Rf5 {[%emt 0:04:40]} Rg7 {[%emt 0:02:05]} 34. Rf3 {[%emt 0:01:09]} Rc7 {[%emt 0:02:43]} 35. h4 {[%emt 0:01:58]} Qd7 {[%emt 0:01:59]} 36. Qg2 {[%emt 0:00:47]} Qe6 {[%emt 0:01:14]} 37. Rg3 {[%emt 0:00:55]} Qf7 {[%emt 0:01:39]} 38. Nc1 {[%emt 0:01:44]} Rb7 {[%emt 0:02:20]} 39. Na2 {[%emt 0:01:21]} a5 {[%emt 0:01:30]} 40. Bd2 {[%emt 0:00:00]} Ra7 {[%emt 0:00:00]} 41. Qe2 {[%emt 0:02:11]} Bd8 {[%emt 0:20:33]} 42. Qe3 {[%emt 0:01:13]} Qe7 {[%emt 0:01:56]} 43. Qh6+ {[%emt 0:02:15]} Kg8 {[%emt 0:00:16]} 44. Rxg6 {[%emt 0:06:34]} Qxh4 {[%emt 0:02:29]} 45. Qe3 {[%emt 0:01:54]} Raf7 {[%emt 0:03:17]} 46. Nc3 {[%emt 0:06:03]} Nf6 {[%emt 0:05:04]} 47. Be1 {[%emt 0:02:56]} Qf4 {[%emt 0:01:25]} 48. Qh3 {[%emt 0:04:44]} Rxg6 {[%emt 0:04:47]} 49. Rxg6+ {[%emt 0:00:10]} Rg7 {[%emt 0:00:18]} 50. Qe6+ {[%emt 0:08:01]} Kh7 {[%emt 0:01:09]} 51. Rxg7+ {[%emt 0:00:35]} Kxg7 {[%emt 0:00:06]} 52. Qxd6 {[%emt 0:01:01]} Qf1 {[%emt 0:00:25]} 53. Qxd8 {[%emt 0:02:13]} Qxe1+ {[%emt 0:00:06]} 54. Ka2 {[%emt 0:00:12]} b4 {[%emt 0:00:59]} 55. axb4 {[%emt 0:00:31]} axb4 {[%emt 0:00:10]} 56. Qe7+ {[%emt 0:00:09]} Kg6 {[%emt 0:00:24]} 57. Qxb4 {[%emt 0:00:12]} Qf2 {[%emt 0:00:40]} 58. Qa4 {[%emt 0:02:54]} Qc5 {[%emt 0:00:44]} 59. Qa6 {[%emt 0:02:42]} Kg5 {[%emt 0:00:24]} 60. Qe6 {[%emt 0:02:45]} Qa7+ {[%emt 0:00:45]} 61. Kb3 {[%emt 0:01:38]} Ng4 {[%emt 0:00:33]} 62. Qd5 {[%emt 0:02:06]} Qb6+ {[%emt 0:00:31]} 63. Nb5 {[%emt 0:01:07]} Kf4 {[%emt 0:00:23]} 64. Ka4 {[%emt 0:02:32]} Ne3 {[%emt 0:00:47]} 65. Qf7+ {[%emt 0:00:46]} Kg3 {[%emt 0:01:04]} 66. Qc7 {[%emt 0:01:49]} Qa6+ {[%emt 0:00:38]} 67. Qa5 {[%emt 0:00:31]} Qc6 {[%emt 0:00:34]} 68. Qe1+ {[%emt 0:00:57]} Kf3 1/2-1/2

[Event "EYCC Girls-U14 2019"]
[Site "Bratislava"]
[Date "2019.08.04"]
[Round "3.19"]
[White "Kralj, Nika"]
[Black "Dakic, Marta"]
[Result "0-1"]
[ECO "B28"]
[WhiteElo "1807"]
[BlackElo "1680"]
[Annotator "NA"]
[PlyCount "92"]
[EventDate "2019.08.02"]
[EventType "swiss"]
[EventCountry "SVK"]
[SourceTitle "playchess.com"]
[Source "ChessBase"]
[SourceQuality "1"]
[TimeControl "40/5400+30:1800+30"]

1. e4 {[%emt 0:00:00]} c5 {[%emt 0:00:00]} 2. Nf3 {[%emt 0:00:00]} a6 {[%emt 0:00:00]} 3. Nc3 {[%emt 0:00:28]} b5 {[%emt 0:00:00]} 4. a3 {[%emt 0:00:20]} Bb7 {[%emt 0:00:18]} 5. d4 {[%emt 0:00:07]} cxd4 {[%emt 0:00:07]} 6. Nxd4 {[%emt 0:00:03]} g6 {[%emt 0:00:11]} 7. Be2 {[%emt 0:02:39]} Bg7 {[%emt 0:00:09]} 8. f4 {[%emt 0:02:30]} d6 {[%emt 0:00:17]} 9. O-O {[%emt 0:03:04]} Nd7 {[%emt 0:00:55]} 10. Bf3 {[%emt 0:14:17]} Ngf6 {[%emt 0:01:13]} 11. Nb3 {[%emt 0:02:37]} O-O {[%emt 0:03:19]} 12. Be3 {[%emt 0:00:55]} Qc7 {[%emt 0:05:18]} 13. Qe1 {[%emt 0:05:42]} Rfe8 {[%emt 0:10:52]} 14. Qf2 {[%emt 0:01:38]} Rac8 {[%emt 0:05:04]} 15. Rad1 {[%emt 0:11:30]} Red8 {[%emt 0:16:45]} 16. f5 {[%emt 0:09:41]} Qb8 {[%emt 0:08:49]} 17. Qh4 {[%emt 0:15:27]} Re8 {[%emt 0:09:52]} 18. Bh6 {[%emt 0:04:11]} Bh8 {[%emt 0:01:39]} 19. Qf4 {[%emt 0:08:41]} Ne5 {[%emt 0:02:31]} 20. h4 {[%emt 0:02:05]} Qa7+ {[%emt 0:08:11]} 21. Kh1 {[%emt 0:01:55]} Ba8 {[%emt 0:04:14]} 22. fxg6 {[%emt 0:04:06]} hxg6 {[%emt 0:00:17]} 23. h5 {[%emt 0:00:41]} Rcd8 {[%emt 0:05:30]} 24. Bg5 {[%emt 0:03:42]} Rc8 {[%emt 0:01:46]} 25. Nd4 {[%emt 0:00:47]} Rc4 {[%emt 0:03:18]} 26. Nce2 {[%emt 0:01:43]} Nh7 {[%emt 0:01:18]} 27. Bh6 {[%emt 0:00:24]} Nf6 {[%emt 0:00:19]} 28. Bg5 {[%emt 0:01:58]} Nh7 {[%emt 0:02:32]} 29. Bh6 {[%emt 0:00:09]} Nf6 {[%emt 0:00:05]} 30. hxg6 {[%emt 0:00:09]} Nxg6 {[%emt 0:01:13]} 31. Qe3 {[%emt 0:01:59]} e6 {[%emt 0:03:38]} 32. b3 {[%emt 0:00:46]} Rcc8 {[%emt 0:00:17]} 33. Ng3 {[%emt 0:01:38]} Qc5 {[%emt 0:02:20]} 34. Rd2 {[%emt 0:00:29]} Qc3 {[%emt 0:01:50]} 35. Qg5 {[%emt 0:00:32]} Qc5 {[%emt 0:00:13]} 36. Qe3 {[%emt 0:00:01]} Bg7 {[%emt 0:01:27]} 37. Bxg7 {[%emt 0:00:37]} Kxg7 {[%emt 0:00:05]} 38. Ngf5+ {[%emt 0:00:46]} exf5 {[%emt 0:01:00]} 39. Nxf5+ {[%emt 0:00:28]} Qxf5 {[%emt 0:00:11]} 40. exf5 {[%emt 0:00:00]} Rxe3 {[%emt 0:00:00]} 41. fxg6 {[%emt 0:00:19]} Bxf3 {[%emt 0:01:10]} 42. gxf3 {[%emt 0:02:49]} d5 {[%emt 0:04:41]} 43. gxf7 {[%emt 0:00:08]} Kxf7 {[%emt 0:00:06]} 44. Kg2 {[%emt 0:00:34]} Rec3 {[%emt 0:01:22]} 45. Rff2 {[%emt 0:00:06]} a5 {[%emt 0:00:51]} 46. Kg3 {[%emt 0:00:57]} a4 {[%emt 0:02:36]} 0-1

[Event "EYCC Girls-U14 2019"]
[Site "Bratislava"]
[Date "2019.08.04"]
[Round "3.20"]
[White "Kasaeva, Sofiia"]
[Black "Croisille, Shanti"]
[Result "1-0"]
[ECO "B79"]
[WhiteElo "1897"]
[BlackElo "1695"]
[Annotator "NA"]
[PlyCount "83"]
[EventDate "2019.08.02"]
[EventType "swiss"]
[EventCountry "SVK"]
[SourceTitle "playchess.com"]
[Source "ChessBase"]
[SourceQuality "1"]
[TimeControl "40/5400+30:1800+30"]

1. e4 {[%emt 0:00:00]} c5 {[%emt 0:00:00]} 2. Nf3 {[%emt 0:00:00]} d6 {[%emt 0:00:00]} 3. d4 {[%emt 0:00:00]} cxd4 {[%emt 0:00:00]} 4. Nxd4 {[%emt 0:00:00]} Nf6 {[%emt 0:00:00]} 5. Nc3 {[%emt 0:00:00]} g6 {[%emt 0:00:00]} 6. Be3 {[%emt 0:00:03]} Bg7 {[%emt 0:00:07]} 7. f3 {[%emt 0:00:09]} O-O {[%emt 0:00:06]} 8. Qd2 {[%emt 0:00:04]} Nc6 {[%emt 0:00:07]} 9. Bc4 {[%emt 0:00:19]} Bd7 {[%emt 0:00:23]} 10. O-O-O {[%emt 0:00:21]} Qa5 11. Bb3 {[%emt 0:00:27]} Rfc8 {[%emt 0:03:14]} 12. h4 {[%emt 0:01:49]} Ne5 {[%emt 0:00:46]} 13. Kb1 {[%emt 0:00:38]} Nc4 {[%emt 0:00:58]} 14. Bxc4 {[%emt 0:00:05]} Rxc4 {[%emt 0:00:19]} 15. Nb3 {[%emt 0:00:07]} Qc7 {[%emt 0:00:37]} 16. g4 {[%emt 0:00:25]} b5 {[%emt 0:02:02]} 17. e5 {[%emt 0:23:02]} Ne8 {[%emt 0:01:53]} 18. Nd5 {[%emt 0:02:19]} Qd8 {[%emt 0:01:26]} 19. Bg5 {[%emt 0:05:22]} f6 {[%emt 0:18:12]} 20. Bh6 {[%emt 0:08:13]} Be6 {[%emt 0:07:02]} 21. Bxg7 {[%emt 0:01:05]} Kxg7 {[%emt 0:00:33]} 22. exf6+ {[%emt 0:08:16]} exf6 {[%emt 0:05:29]} 23. g5 {[%emt 0:03:34]} Qc8 {[%emt 0:21:06]} 24. Ne3 {[%emt 0:10:26]} Rf4 {[%emt 0:11:51]} 25. h5 {[%emt 0:05:29]} Bf7 {[%emt 0:02:23]} 26. Nd5 {[%emt 0:15:21]} Rxf3 {[%emt 0:05:58]} 27. hxg6 {[%emt 0:06:19]} Bxg6 {[%emt 0:02:08]} 28. Ne7 {[%emt 0:01:19]} Qxc2+ {[%emt 0:05:00]} 29. Qxc2 {[%emt 0:00:13]} Bxc2+ {[%emt 0:00:06]} 30. Kxc2 {[%emt 0:00:03]} fxg5 {[%emt 0:00:25]} 31. Nd4 {[%emt 0:00:35]} Rf2+ {[%emt 0:01:27]} 32. Rd2 {[%emt 0:00:08]} Rxd2+ {[%emt 0:00:03]} 33. Kxd2 {[%emt 0:00:05]} a6 {[%emt 0:01:43]} 34. Ndf5+ {[%emt 0:02:28]} Kh8 {[%emt 0:01:25]} 35. Ke3 {[%emt 0:04:11]} Rd8 {[%emt 0:04:12]} 36. Rh5 {[%emt 0:03:29]} g4 {[%emt 0:01:36]} 37. Rg5 {[%emt 0:00:31]} Nf6 {[%emt 0:00:18]} 38. Kf4 {[%emt 0:00:37]} b4 {[%emt 0:03:38]} 39. Ke3 {[%emt 0:00:52]} Re8 {[%emt 0:01:24]} 40. Kd3 {[%emt 0:00:00]} Rd8 {[%emt 0:00:00]} 41. Nh6 {[%emt 0:02:54]} Rf8 42. Nef5 1-0

[Event "EYCC Girls-U14 2019"]
[Site "Bratislava"]
[Date "2019.08.04"]
[Round "3.21"]
[White "Varekha, Anna"]
[Black "Katter, Katharina"]
[Result "0-1"]
[ECO "C99"]
[WhiteElo "1643"]
[BlackElo "1824"]
[Annotator "NA"]
[PlyCount "85"]
[EventDate "2019.08.02"]
[EventType "swiss"]
[EventCountry "SVK"]
[SourceTitle "playchess.com"]
[Source "ChessBase"]
[SourceQuality "1"]
[TimeControl "40/5400+30:1800+30"]

1. e4 {[%emt 0:00:00]} e5 {[%emt 0:00:00]} 2. Nf3 {[%emt 0:00:00]} Nc6 {[%emt 0:00:00]} 3. Bb5 {[%emt 0:00:00]} a6 {[%emt 0:00:00]} 4. Ba4 {[%emt 0:00:00]} Nf6 {[%emt 0:00:02]} 5. O-O {[%emt 0:00:28]} Be7 {[%emt 0:00:19]} 6. Re1 {[%emt 0:00:06]} b5 {[%emt 0:00:07]} 7. Bb3 {[%emt 0:00:05]} d6 {[%emt 0:00:05]} 8. c3 {[%emt 0:00:07]} O-O {[%emt 0:00:48]} 9. h3 {[%emt 0:00:05]} Na5 {[%emt 0:00:21]} 10. Bc2 {[%emt 0:00:01]} c5 {[%emt 0:00:21]} 11. d4 {[%emt 0:00:48]} Qc7 {[%emt 0:00:25]} 12. Nbd2 {[%emt 0:01:20]} cxd4 {[%emt 0:00:53]} 13. cxd4 {[%emt 0:00:30]} Rd8 {[%emt 0:00:31]} 14. Nf1 {[%emt 0:04:27]} exd4 {[%emt 0:00:52]} 15. Nxd4 {[%emt 0:00:28]} d5 {[%emt 0:00:16]} 16. e5 {[%emt 0:09:13]} Ne4 {[%emt 0:00:23]} 17. Bf4 {[%emt 0:08:43]} Qb6 {[%emt 0:11:55]} 18. Be3 {[%emt 0:12:50]} Bc5 {[%emt 0:16:44]} 19. a3 {[%emt 0:10:58]} Nc4 {[%emt 0:13:28]} 20. b4 {[%emt 0:09:07]} Bf8 {[%emt 0:03:53]} 21. Nf3 {[%emt 0:06:38]} Qc7 {[%emt 0:07:00]} 22. Bd4 {[%emt 0:02:21]} Bb7 {[%emt 0:04:32]} 23. Qd3 {[%emt 0:03:07]} g6 {[%emt 0:06:01]} 24. Rac1 {[%emt 0:00:42]} a5 {[%emt 0:02:14]} 25. Ne3 {[%emt 0:06:28]} axb4 {[%emt 0:04:25]} 26. Nxc4 {[%emt 0:03:46]} bxc4 {[%emt 0:02:12]} 27. Qe3 {[%emt 0:00:35]} Rxa3 {[%emt 0:02:46]} 28. Qf4 {[%emt 0:01:51]} Qd7 {[%emt 0:07:28]} 29. Qh4 {[%emt 0:03:52]} Rc8 {[%emt 0:02:29]} 30. Bxe4 {[%emt 0:03:37]} dxe4 {[%emt 0:00:33]} 31. Ng5 {[%emt 0:00:10]} h6 {[%emt 0:02:14]} 32. Nxe4 {[%emt 0:00:27]} Bxe4 {[%emt 0:01:40]} 33. Qxe4 {[%emt 0:00:10]} Rd3 {[%emt 0:02:37]} 34. Red1 {[%emt 0:05:29]} Rxd1+ {[%emt 0:01:10]} 35. Rxd1 {[%emt 0:00:01]} Bc5 {[%emt 0:01:34]} 36. Rd2 {[%emt 0:01:34]} Bxd4 {[%emt 0:01:31]} 37. Rxd4 {[%emt 0:00:04]} Qc6 {[%emt 0:01:47]} 38. Rd8+ {[%emt 0:01:54]} Kg7 {[%emt 0:00:16]} 39. Qd4 {[%emt 0:00:16]} Rxd8 {[%emt 0:00:35]} 40. Qxd8 {[%emt 0:00:00]} c3 {[%emt 0:00:00]} 41. Qd4 {[%emt 0:00:38]} c2 {[%emt 0:04:10]} 42. e6+ {[%emt 0:00:38]} Kh7 {[%emt 0:00:28]} 43. Qd1 0-1

[Event "EYCC Girls-U14 2019"]
[Site "Bratislava"]
[Date "2019.08.04"]
[Round "3.22"]
[White "Mihelic, Vesna"]
[Black "Zvereva, Margarita"]
[Result "1-0"]
[ECO "B13"]
[WhiteElo "1844"]
[BlackElo "1693"]
[Annotator "NA"]
[PlyCount "61"]
[EventDate "2019.08.02"]
[EventType "swiss"]
[EventCountry "SVK"]
[SourceTitle "playchess.com"]
[Source "ChessBase"]
[SourceQuality "1"]
[TimeControl "40/5400+30:1800+30"]

1. e4 {[%emt 0:00:00]} c6 {[%emt 0:00:00]} 2. d4 {[%emt 0:00:00]} d5 {[%emt 0:00:00]} 3. exd5 {[%emt 0:00:00]} cxd5 {[%emt 0:00:00]} 4. Bf4 {[%emt 0:00:00]} Nc6 {[%emt 0:00:51]} 5. c3 {[%emt 0:00:15]} Bf5 {[%emt 0:00:45]} 6. Bd3 {[%emt 0:00:55]} Bxd3 {[%emt 0:01:00]} 7. Qxd3 {[%emt 0:00:12]} e6 {[%emt 0:00:53]} 8. Nf3 {[%emt 0:00:42]} Bd6 {[%emt 0:01:53]} 9. Bxd6 {[%emt 0:01:49]} Qxd6 {[%emt 0:00:07]} 10. O-O {[%emt 0:01:21]} Nge7 {[%emt 0:02:32]} 11. Re1 {[%emt 0:03:14]} Ng6 {[%emt 0:00:37]} 12. Nbd2 {[%emt 0:03:34]} O-O {[%emt 0:01:28]} 13. Qe3 {[%emt 0:11:44]} Rfe8 {[%emt 0:17:19]} 14. Ne5 {[%emt 0:03:50]} Ngxe5 {[%emt 0:04:28]} 15. dxe5 {[%emt 0:00:19]} Qe7 {[%emt 0:00:55]} 16. Rad1 {[%emt 0:16:22]} b5 {[%emt 0:03:52]} 17. a3 {[%emt 0:04:51]} Na5 {[%emt 0:07:15]} 18. b4 {[%emt 0:04:24]} Nc4 {[%emt 0:11:34]} 19. Nxc4 {[%emt 0:00:13]} bxc4 {[%emt 0:04:31]} 20. a4 {[%emt 0:06:18]} f6 {[%emt 0:12:09]} 21. Qd4 {[%emt 0:12:17]} fxe5 {[%emt 0:05:29]} 22. Qxe5 {[%emt 0:04:12]} Qf6 {[%emt 0:06:34]} 23. f4 {[%emt 0:04:44]} Rad8 {[%emt 0:03:16]} 24. g3 {[%emt 0:02:12]} Qg6 {[%emt 0:07:09]} 25. Qd4 {[%emt 0:01:06]} Rd7 {[%emt 0:02:25]} 26. Re5 {[%emt 0:01:11]} Kf7 {[%emt 0:03:38]} 27. Rde1 {[%emt 0:02:17]} Rde7 {[%emt 0:00:46]} 28. f5 {[%emt 0:00:38]} exf5 {[%emt 0:01:51]} 29. Qxd5+ {[%emt 0:00:50]} Re6 {[%emt 0:00:34]} 30. Rxe6 {[%emt 0:01:30]} Rxe6 {[%emt 0:00:24]} 31. Qd7+ {[%emt 0:00:06]} 1-0

[Event "EYCC Girls-U14 2019"]
[Site "Bratislava"]
[Date "2019.08.04"]
[Round "3.23"]
[White "Kucharska, Helena"]
[Black "Lomaia, Diana"]
[Result "1/2-1/2"]
[ECO "B90"]
[WhiteElo "1543"]
[BlackElo "1807"]
[Annotator "NA"]
[PlyCount "93"]
[EventDate "2019.08.02"]
[EventType "swiss"]
[EventCountry "SVK"]
[SourceTitle "playchess.com"]
[Source "ChessBase"]
[SourceQuality "1"]
[TimeControl "40/5400+30:1800+30"]

1. e4 {[%emt 0:00:00]} c5 {[%emt 0:00:00]} 2. Nf3 {[%emt 0:00:00]} d6 {[%emt 0:00:48]} 3. d4 {[%emt 0:00:00]} cxd4 {[%emt 0:00:18]} 4. Nxd4 {[%emt 0:00:08]} Nf6 {[%emt 0:00:28]} 5. Nc3 {[%emt 0:00:13]} a6 {[%emt 0:02:17]} 6. h3 {[%emt 0:01:13]} e6 {[%emt 0:01:51]} 7. Be3 {[%emt 0:05:57]} Nc6 {[%emt 0:00:54]} 8. g4 {[%emt 0:02:44]} Nd7 {[%emt 0:00:51]} 9. Bg2 {[%emt 0:05:52]} Be7 {[%emt 0:01:37]} 10. Qd2 {[%emt 0:07:33]} Nde5 {[%emt 0:02:47]} 11. b3 {[%emt 0:07:50]} Ng6 {[%emt 0:02:30]} 12. O-O {[%emt 0:07:28]} O-O {[%emt 0:05:47]} 13. Rad1 {[%emt 0:04:26]} Nxd4 {[%emt 0:07:40]} 14. Bxd4 {[%emt 0:03:14]} e5 {[%emt 0:05:37]} 15. Be3 {[%emt 0:01:11]} Be6 {[%emt 0:01:40]} 16. Nd5 {[%emt 0:02:41]} Bxd5 {[%emt 0:03:04]} 17. Qxd5 {[%emt 0:00:26]} Qc7 {[%emt 0:01:45]} 18. c4 {[%emt 0:02:59]} Rad8 {[%emt 0:04:55]} 19. Kh1 {[%emt 0:10:25]} b6 {[%emt 0:07:16]} 20. Qd2 {[%emt 0:06:43]} Qb8 {[%emt 0:14:06]} 21. Rb1 {[%emt 0:02:50]} Rc8 {[%emt 0:01:59]} 22. Kh2 {[%emt 0:05:11]} Qc7 {[%emt 0:11:36]} 23. Rbc1 {[%emt 0:04:49]} Rfd8 {[%emt 0:02:23]} 24. Rh1 {[%emt 0:03:24]} Nh4 {[%emt 0:01:00]} 25. g5 {[%emt 0:03:31]} Qb7 {[%emt 0:04:51]} 26. f3 {[%emt 0:01:05]} Nxg2 {[%emt 0:03:10]} 27. Kxg2 {[%emt 0:00:50]} b5 {[%emt 0:00:40]} 28. h4 {[%emt 0:01:10]} bxc4 {[%emt 0:01:04]} 29. bxc4 {[%emt 0:00:19]} Rb8 {[%emt 0:00:48]} 30. h5 {[%emt 0:01:13]} Qb4 {[%emt 0:02:31]} 31. Qd3 {[%emt 0:03:01]} Qa5 {[%emt 0:01:43]} 32. Rc2 {[%emt 0:01:16]} f6 {[%emt 0:06:41]} 33. g6 {[%emt 0:00:45]} h6 {[%emt 0:00:01]} 34. c5 {[%emt 0:01:18]} dxc5 {[%emt 0:01:44]} 35. Qc4+ {[%emt 0:00:14]} Kh8 {[%emt 0:00:01]} 36. Qf7 {[%emt 0:00:21]} Qa4 {[%emt 0:00:27]} 37. Rhc1 {[%emt 0:02:05]} Bf8 {[%emt 0:00:23]} 38. Bxc5 {[%emt 0:01:12]} Bxc5 {[%emt 0:00:07]} 39. Rxc5 {[%emt 0:00:09]} Rb2+ {[%emt 0:00:48]} 40. Kg3 {[%emt 0:00:00]} Qd4 {[%emt 0:00:00]} 41. R5c2 {[%emt 0:04:25]} Qe3 {[%emt 0:05:10]} 42. Rxb2 {[%emt 0:12:11]} Qxc1 {[%emt 0:00:29]} 43. Qd7 {[%emt 0:01:26]} Qg5+ {[%emt 0:12:41]} 44. Qg4 {[%emt 0:00:24]} Qc1 {[%emt 0:02:26]} 45. Qd7 {[%emt 0:05:22]} Qg5+ {[%emt 0:01:53]} 46. Qg4 {[%emt 0:00:16]} Qc1 {[%emt 0:00:28]} 47. Qd7 1/2-1/2

[Event "EYCC Girls-U14 2019"]
[Site "Bratislava"]
[Date "2019.08.04"]
[Round "3.24"]
[White "Lorente Serrano, Rosa Adela"]
[Black "Gasparyan, Milena"]
[Result "1/2-1/2"]
[ECO "A01"]
[WhiteElo "1788"]
[BlackElo "1498"]
[Annotator "NA"]
[PlyCount "86"]
[EventDate "2019.08.02"]
[EventType "swiss"]
[EventCountry "SVK"]
[SourceTitle "playchess.com"]
[Source "ChessBase"]
[SourceQuality "1"]
[TimeControl "40/5400+30:1800+30"]

1. b3 {[%emt 0:00:00]} e5 {[%emt 0:00:00]} 2. Bb2 {[%emt 0:00:00]} Nc6 {[%emt 0:00:00]} 3. c4 {[%emt 0:00:13]} Nf6 {[%emt 0:00:00]} 4. e3 {[%emt 0:01:00]} g6 {[%emt 0:00:29]} 5. Nf3 {[%emt 0:02:58]} d6 {[%emt 0:00:18]} 6. d3 {[%emt 0:00:28]} Bg7 {[%emt 0:00:14]} 7. Nbd2 {[%emt 0:01:19]} O-O {[%emt 0:00:17]} 8. a3 {[%emt 0:00:22]} Nd7 {[%emt 0:01:11]} 9. b4 {[%emt 0:03:42]} Qe7 {[%emt 0:01:56]} 10. Qc2 {[%emt 0:01:30]} f5 {[%emt 0:01:08]} 11. b5 {[%emt 0:11:43]} Nd8 {[%emt 0:00:15]} 12. Be2 {[%emt 0:00:53]} Nf6 {[%emt 0:00:40]} 13. O-O {[%emt 0:03:14]} Ne6 {[%emt 0:01:42]} 14. Nb3 {[%emt 0:04:27]} Bd7 {[%emt 0:06:07]} 15. a4 {[%emt 0:04:22]} Kh8 {[%emt 0:06:25]} 16. Rac1 {[%emt 0:02:32]} g5 {[%emt 0:22:19]} 17. c5 {[%emt 0:02:02]} g4 {[%emt 0:03:05]} 18. Nfd2 {[%emt 0:00:21]} f4 {[%emt 0:01:18]} 19. d4 {[%emt 0:06:41]} Ng5 {[%emt 0:09:38]} 20. dxe5 {[%emt 0:07:43]} dxe5 {[%emt 0:00:21]} 21. exf4 {[%emt 0:02:24]} exf4 {[%emt 0:00:51]} 22. Rfe1 {[%emt 0:00:07]} Qf7 {[%emt 0:02:51]} 23. f3 {[%emt 0:02:54]} Qh5 {[%emt 0:06:14]} 24. c6 {[%emt 0:08:12]} bxc6 {[%emt 0:04:11]} 25. bxc6 {[%emt 0:00:08]} g3 {[%emt 0:05:56]} 26. Nf1 {[%emt 0:00:46]} Bf5 {[%emt 0:01:43]} 27. Bd3 {[%emt 0:01:18]} Nxf3+ {[%emt 0:06:29]} 28. gxf3 {[%emt 0:01:22]} gxh2+ {[%emt 0:00:08]} 29. Nxh2 {[%emt 0:00:19]} Qg6+ {[%emt 0:00:16]} 30. Qg2 {[%emt 0:06:27]} Bxd3 {[%emt 0:00:26]} 31. Nc5 {[%emt 0:00:19]} Bf5 {[%emt 0:03:21]} 32. Re7 {[%emt 0:00:55]} Rf7 {[%emt 0:03:33]} 33. Rce1 {[%emt 0:01:47]} Rg8 {[%emt 0:04:09]} 34. Qxg6 {[%emt 0:05:31]} Bxg6 {[%emt 0:00:05]} 35. Kf1 {[%emt 0:00:34]} Nd5 {[%emt 0:01:17]} 36. Bxg7+ {[%emt 0:00:31]} Rfxg7 {[%emt 0:01:11]} 37. Rxg7 {[%emt 0:01:18]} Rxg7 {[%emt 0:00:12]} 38. Ng4 {[%emt 0:00:04]} h5 {[%emt 0:01:38]} 39. Ne5 {[%emt 0:00:15]} Bf5 {[%emt 0:00:26]} 40. Kf2 {[%emt 0:00:00]} Ne3 {[%emt 0:00:00]} 41. Rh1 {[%emt 0:02:57]} Rg2+ {[%emt 0:21:02]} 42. Ke1 {[%emt 0:00:11]} Nc2+ {[%emt 0:00:04]} 43. Kf1 {[%emt 0:00:07]} Ne3+ {[%emt 0:00:06]} 1/2-1/2

[Event "EYCC Girls-U14 2019"]
[Site "Bratislava"]
[Date "2019.08.05"]
[Round "4.1"]
[White "Wikar, Martyna"]
[Black "Allahverdiyeva, Ayan"]
[Result "1/2-1/2"]
[ECO "C12"]
[WhiteElo "2020"]
[BlackElo "2114"]
[Annotator "NA"]
[PlyCount "64"]
[EventDate "2019.08.02"]
[EventType "swiss"]
[EventCountry "SVK"]
[SourceTitle "playchess.com"]
[Source "ChessBase"]
[SourceQuality "1"]
[TimeControl "40/5400+30:1800+30"]

1. e4 {[%emt 0:00:00]} e6 {[%emt 0:00:38]} 2. d4 {[%emt 0:00:00]} d5 {[%emt 0:06:25]} 3. Nc3 {[%emt 0:00:00]} Nf6 {[%emt 0:00:29]} 4. Bg5 {[%emt 0:00:04]} Bb4 {[%emt 0:02:17]} 5. e5 {[%emt 0:00:10]} h6 {[%emt 0:00:04]} 6. Bd2 {[%emt 0:00:06]} Bxc3 {[%emt 0:00:05]} 7. bxc3 {[%emt 0:00:11]} Ne4 {[%emt 0:00:06]} 8. Qg4 {[%emt 0:00:24]} Kf8 {[%emt 0:00:38]} 9. Bc1 {[%emt 0:04:21]} c5 {[%emt 0:09:27]} 10. Bd3 {[%emt 0:02:01]} Nxc3 {[%emt 0:15:57]} 11. dxc5 {[%emt 0:04:20]} Qa5 {[%emt 0:08:03]} 12. Bd2 {[%emt 0:01:25]} Qa4 {[%emt 0:00:08]} 13. Qh5 {[%emt 0:25:35]} Ne4 {[%emt 0:02:35]} 14. Nf3 {[%emt 0:03:16]} Nxd2 {[%emt 0:02:49]} 15. Nxd2 {[%emt 0:00:32]} Nd7 {[%emt 0:08:15]} 16. O-O {[%emt 0:15:09]} Qf4 {[%emt 0:13:50]} 17. Nf3 {[%emt 0:09:52]} g6 {[%emt 0:02:36]} 18. Qh3 {[%emt 0:00:52]} Nxe5 {[%emt 0:00:46]} 19. Nxe5 {[%emt 0:00:11]} Qxe5 {[%emt 0:00:12]} 20. Rae1 {[%emt 0:03:53]} Qc3 {[%emt 0:09:21]} 21. Re3 {[%emt 0:05:54]} Qxc5 {[%emt 0:00:53]} 22. Qh4 {[%emt 0:04:28]} Qe7 {[%emt 0:04:42]} 23. Qd4 {[%emt 0:01:46]} Rg8 {[%emt 0:00:07]} 24. c4 {[%emt 0:01:59]} dxc4 {[%emt 0:01:19]} 25. Bxc4 {[%emt 0:00:23]} Bd7 {[%emt 0:02:55]} 26. Rfe1 {[%emt 0:02:31]} Rc8 {[%emt 0:01:57]} 27. Bb3 {[%emt 0:01:40]} a5 {[%emt 0:02:13]} 28. a4 {[%emt 0:03:33]} Ke8 {[%emt 0:01:44]} 29. Qf4 {[%emt 0:03:31]} Qg5 {[%emt 0:01:36]} 30. Qd6 {[%emt 0:01:45]} Qc5 {[%emt 0:00:29]} 31. Qf4 {[%emt 0:00:39]} Qg5 {[%emt 0:00:03]} 32. Qd6 {[%emt 0:00:12]} Qc5 {[%emt 0:00:08]} 1/2-1/2